[Event "Live Chess"]
[Site "Chess.com"]
[Date "2024.06.01"]
[Round "-"]
[White "MiflockHydra"]
[Black "Zhevzh1k7"]
[Result "1-0"]
[WhiteElo "587"]
[BlackElo "1067"]
[TimeControl "300"]
[EndTime "9:25:44 PDT"]
[Termination "MiflockHydra won by checkmate"]

1. d4 {[%clk 0:04:56.8]} 1... Nf6 {[%clk 0:04:57.4]} 2. Bf4 {[%clk 0:04:56.2]}
2... c6 {[%clk 0:04:56.1]} 3. e3 {[%clk 0:04:55.7]} 3... Qb6 {[%clk 0:04:55.5]}
4. Bd3 {[%clk 0:04:53.9]} 4... Qxb2 {[%clk 0:04:53.8]} 5. Nd2 {[%clk 0:04:52.4]}
5... d5 {[%clk 0:04:48]} 6. Rb1 {[%clk 0:04:44.8]} 6... Qxa2 {[%clk 0:04:45.3]}
7. Ngf3 {[%clk 0:04:15.7]} 7... Bg4 {[%clk 0:04:40.5]} 8. O-O {[%clk 0:04:13.6]}
8... e6 {[%clk 0:04:36.8]} 9. Qe2 {[%clk 0:04:10.3]} 9... Nbd7 {[%clk
0:04:26.7]} 10. Ra1 {[%clk 0:04:06.4]} 10... Qb2 {[%clk 0:04:19.3]} 11. Rfb1
{[%clk 0:04:03.1]} 11... Bxf3 {[%clk 0:04:17.4]} 12. Qxf3 {[%clk 0:04:00]} 12...
Qc3 {[%clk 0:04:09]} 13. Nf1 {[%clk 0:03:42.4]} 13... Nb6 {[%clk 0:04:04.1]} 14.
Bc7 {[%clk 0:03:28.8]} 14... Nfd7 {[%clk 0:03:41.1]} 15. Bxb6 {[%clk 0:03:22.9]}
15... Nxb6 {[%clk 0:03:39.3]} 16. Ra2 {[%clk 0:03:12.8]} 16... Bb4 {[%clk
0:03:33.4]} 17. Rb3 {[%clk 0:03:07.1]} 17... Qe1 {[%clk 0:03:21.7]} 18. Qg4
{[%clk 0:02:27.3]} 18... O-O {[%clk 0:02:40.2]} 19. Qh3 {[%clk 0:02:16.1]} 19...
h6 {[%clk 0:02:33.6]} 20. g4 {[%clk 0:02:12.6]} 20... Nc4 {[%clk 0:02:31]} 21.
g5 {[%clk 0:02:09.5]} 21... Nd2 {[%clk 0:02:22.9]} 22. gxh6 {[%clk 0:02:05.9]}
22... gxh6 {[%clk 0:02:11.9]} 23. Qxh6 {[%clk 0:02:02.9]} 23... Nf3+ {[%clk
0:02:01.1]} 24. Kg2 {[%clk 0:01:56.1]} 24... Nh4+ {[%clk 0:01:41]} 25. Qxh4
{[%clk 0:01:53.2]} 25... Rfc8 {[%clk 0:01:32.8]} 26. Bh7+ {[%clk 0:01:31.4]}
26... Kf8 {[%clk 0:01:29]} 27. Qh6+ {[%clk 0:01:27.2]} 27... Ke7 {[%clk
0:01:27.1]} 28. Qg5+ {[%clk 0:01:24.8]} 28... Kd7 {[%clk 0:01:20.6]} 29. Qf6
{[%clk 0:01:18.5]} 29... Be7 {[%clk 0:01:07.3]} 30. Qxf7 {[%clk 0:01:16.3]}
30... Rf8 {[%clk 0:01:03.7]} 31. Rxb7+ {[%clk 0:01:13.8]} 31... Kc8 {[%clk
0:00:58.8]} 32. Qxe7 {[%clk 0:01:12.3]} 32... Qxf1+ {[%clk 0:00:50.1]} 33. Kxf1
{[%clk 0:01:07.5]} 33... Rb8 {[%clk 0:00:45.6]} 34. Qc7# {[%clk 0:01:04.4]} 1-0

[Event "Live Chess"]
[Site "Chess.com"]
[Date "2024.06.01"]
[Round "-"]
[White "Ninifu"]
[Black "TheSmoulderingMaster"]
[Result "1-0"]
[WhiteElo "2068"]
[BlackElo "1742"]
[TimeControl "300"]
[EndTime "9:25:51 PDT"]
[Termination "Ninifu won by resignation"]

1. d4 {[%clk 0:04:56.3]} 1... Nf6 {[%clk 0:04:58.1]} 2. c4 {[%clk 0:04:55.1]}
2... d6 {[%clk 0:04:55.3]} 3. Nc3 {[%clk 0:04:53.2]} 3... g6 {[%clk 0:04:54.5]}
4. e4 {[%clk 0:04:52.5]} 4... Bg7 {[%clk 0:04:53.7]} 5. f4 {[%clk 0:04:52]} 5...
O-O {[%clk 0:04:52.8]} 6. Nf3 {[%clk 0:04:51.4]} 6... e6 {[%clk 0:04:52]} 7. Be2
{[%clk 0:04:47.2]} 7... Nc6 {[%clk 0:04:50.7]} 8. O-O {[%clk 0:04:45.2]} 8...
Qe7 {[%clk 0:04:46.7]} 9. e5 {[%clk 0:04:44.2]} 9... Ne8 {[%clk 0:04:45.4]} 10.
Be3 {[%clk 0:04:42.4]} 10... dxe5 {[%clk 0:04:42.5]} 11. dxe5 {[%clk 0:04:41.1]}
11... Na5 {[%clk 0:04:37.7]} 12. a3 {[%clk 0:04:33.9]} 12... Bd7 {[%clk
0:04:33.7]} 13. Ne4 {[%clk 0:04:32.9]} 13... Bc6 {[%clk 0:04:26.7]} 14. Bc5
{[%clk 0:04:29]} 14... Qd8 {[%clk 0:04:21.6]} 15. Qxd8 {[%clk 0:04:26.5]} 15...
Rxd8 {[%clk 0:04:19.2]} 16. Bxf8 {[%clk 0:04:24.7]} 16... Bxf8 {[%clk
0:04:17.5]} 17. Nc3 {[%clk 0:04:17.2]} 17... Bxf3 {[%clk 0:04:13.6]} 18. Rxf3
{[%clk 0:04:15]} 18... Rd2 {[%clk 0:04:11.2]} 19. b4 {[%clk 0:04:08.7]} 19...
Nb3 {[%clk 0:04:08.2]} 20. Rd1 {[%clk 0:04:07.4]} 20... Rxd1+ {[%clk 0:04:01.1]}
21. Bxd1 {[%clk 0:04:03.5]} 21... Nd4 {[%clk 0:03:55.9]} 22. Rd3 {[%clk
0:04:02.7]} 22... Nf5 {[%clk 0:03:53.8]} 23. Rd7 {[%clk 0:03:52]} 23... Ne3
{[%clk 0:03:49.7]} 24. Be2 {[%clk 0:03:48.6]} 24... a5 {[%clk 0:03:47.7]} 25.
Kf2 {[%clk 0:03:40.7]} 25... Nf5 {[%clk 0:03:44.5]} 26. c5 {[%clk 0:03:36.7]}
26... axb4 {[%clk 0:03:42.1]} 27. axb4 {[%clk 0:03:35.3]} 27... b6 {[%clk
0:03:37.8]} 28. g4 {[%clk 0:03:24]} 28... Nh6 {[%clk 0:03:32.3]} 29. Rd8 {[%clk
0:03:11.2]} 29... Ng7 {[%clk 0:03:28.4]} 30. Ne4 {[%clk 0:03:01.6]} 30... bxc5
{[%clk 0:03:23.3]} 31. Nf6+ {[%clk 0:02:59.9]} 31... Kh8 {[%clk 0:03:20.4]} 32.
Rxf8+ {[%clk 0:02:58.3]} 1-0

[Event "Live Chess"]
[Site "Chess.com"]
[Date "2024.06.01"]
[Round "-"]
[White "Grieve72"]
[Black "DoggyDalmatian"]
[Result "1-0"]
[WhiteElo "2651"]
[BlackElo "1544"]
[TimeControl "300"]
[EndTime "9:26:07 PDT"]
[Termination "Grieve72 won by resignation"]

1. e4 {[%clk 0:04:59.4]} 1... e5 {[%clk 0:04:55.3]} 2. Nf3 {[%clk 0:04:58.8]}
2... Nc6 {[%clk 0:04:54.4]} 3. Bc4 {[%clk 0:04:58.4]} 3... Bc5 {[%clk
0:04:53.7]} 4. d3 {[%clk 0:04:57.3]} 4... Nf6 {[%clk 0:04:51.9]} 5. Bg5 {[%clk
0:04:57]} 5... d6 {[%clk 0:04:49.6]} 6. c3 {[%clk 0:04:55.7]} 6... h6 {[%clk
0:04:48.3]} 7. Bh4 {[%clk 0:04:54.9]} 7... g5 {[%clk 0:04:46.5]} 8. Bg3 {[%clk
0:04:54.4]} 8... Nh5 {[%clk 0:04:46]} 9. Nbd2 {[%clk 0:04:52.9]} 9... Nxg3
{[%clk 0:04:44.6]} 10. hxg3 {[%clk 0:04:52.8]} 10... Na5 {[%clk 0:04:41.9]} 11.
d4 {[%clk 0:04:48.9]} 11... exd4 {[%clk 0:04:38.8]} 12. cxd4 {[%clk 0:04:48.8]}
12... Bb4 {[%clk 0:04:38.1]} 13. Bd3 {[%clk 0:04:43.5]} 13... Nc6 {[%clk
0:04:33.5]} 14. d5 {[%clk 0:04:42.4]} 14... Ne5 {[%clk 0:04:30.1]} 15. Nxe5
{[%clk 0:04:39.9]} 15... dxe5 {[%clk 0:04:30]} 16. Qa4+ {[%clk 0:04:39.2]} 16...
Bd7 {[%clk 0:04:27]} 17. Qxb4 {[%clk 0:04:39.1]} 1-0

[Event "Live Chess"]
[Site "Chess.com"]
[Date "2024.06.01"]
[Round "-"]
[White "SirGerhard"]
[Black "Crowded_House"]
[Result "1-0"]
[WhiteElo "2754"]
[BlackElo "1740"]
[TimeControl "300"]
[EndTime "9:26:13 PDT"]
[Termination "SirGerhard won by resignation"]

1. d4 {[%clk 0:04:58.2]} 1... e6 {[%clk 0:04:59]} 2. e4 {[%clk 0:04:57.2]} 2...
d5 {[%clk 0:04:58]} 3. Nd2 {[%clk 0:04:56.6]} 3... dxe4 {[%clk 0:04:56.7]} 4.
Nxe4 {[%clk 0:04:55.7]} 4... Bd7 {[%clk 0:04:56.3]} 5. Nf3 {[%clk 0:04:54.3]}
5... Bc6 {[%clk 0:04:55.8]} 6. Bd3 {[%clk 0:04:53.6]} 6... Nd7 {[%clk
0:04:54.9]} 7. O-O {[%clk 0:04:52.8]} 7... Ngf6 {[%clk 0:04:52.9]} 8. Ng3 {[%clk
0:04:52.1]} 8... Be7 {[%clk 0:04:50.5]} 9. Re1 {[%clk 0:04:50.9]} 9... O-O
{[%clk 0:04:48.6]} 10. c3 {[%clk 0:04:50.3]} 10... h6 {[%clk 0:04:47.4]} 11. Bf4
{[%clk 0:04:48.9]} 11... Nd5 {[%clk 0:04:39.3]} 12. Bd2 {[%clk 0:04:46.9]} 12...
Bd6 {[%clk 0:04:32.2]} 13. Ne5 {[%clk 0:04:40.1]} 13... Nxe5 {[%clk 0:04:12]}
14. dxe5 {[%clk 0:04:39.1]} 14... Be7 {[%clk 0:04:10.3]} 15. Qg4 {[%clk
0:04:31.5]} 15... Bg5 {[%clk 0:03:58.8]} 16. Rad1 {[%clk 0:04:23.2]} 16... Bxd2
{[%clk 0:03:56.3]} 17. Rxd2 {[%clk 0:04:22.1]} 17... Qg5 {[%clk 0:03:53]} 18.
Qxg5 {[%clk 0:04:21]} 18... hxg5 {[%clk 0:03:52.1]} 19. Ne4 {[%clk 0:04:20.7]}
19... Nf4 {[%clk 0:03:46.2]} 20. Bf1 {[%clk 0:04:13.3]} 20... Bxe4 {[%clk
0:03:34.3]} 21. Rxe4 {[%clk 0:04:12.4]} 21... Rfd8 {[%clk 0:03:30.9]} 22. Rdd4
{[%clk 0:04:08.4]} 22... Rxd4 {[%clk 0:03:28.9]} 23. Rxd4 {[%clk 0:04:04.5]}
23... Ng6 {[%clk 0:03:18.2]} 24. Rg4 {[%clk 0:03:58.4]} 24... Nxe5 {[%clk
0:03:14.8]} 25. Rxg5 {[%clk 0:03:57.7]} 25... f6 {[%clk 0:03:11.7]} 26. Rg3
{[%clk 0:03:56.8]} 26... Rd8 {[%clk 0:03:09.9]} 27. f4 {[%clk 0:03:55.9]} 27...
Nc6 {[%clk 0:03:03]} 28. Bc4 {[%clk 0:03:55.1]} 28... Rd2 {[%clk 0:02:35.8]} 29.
Bxe6+ {[%clk 0:03:50.9]} 29... Kf8 {[%clk 0:02:35.1]} 30. b4 {[%clk 0:03:38]}
30... Re2 {[%clk 0:02:25.2]} 31. Bb3 {[%clk 0:03:34.5]} 31... Ne7 {[%clk
0:02:22.9]} 32. Rd3 {[%clk 0:03:31.9]} 32... Ke8 {[%clk 0:02:18.3]} 33. h4
{[%clk 0:03:09.4]} 33... Re1+ {[%clk 0:02:16.3]} 34. Kf2 {[%clk 0:03:08]} 34...
Rc1 {[%clk 0:02:15.4]} 35. h5 {[%clk 0:03:03.3]} 35... Nc6 {[%clk 0:02:05.2]}
36. g4 {[%clk 0:02:59.8]} 36... Rh1 {[%clk 0:02:01.5]} 37. Kg2 {[%clk 0:02:57]}
37... Re1 {[%clk 0:01:59.3]} 38. g5 {[%clk 0:02:53.3]} 38... fxg5 {[%clk
0:01:56.8]} 39. fxg5 {[%clk 0:02:52.6]} 39... Re5 {[%clk 0:01:54.3]} 40. Rg3
{[%clk 0:02:51.6]} 40... Ne7 {[%clk 0:01:42.4]} 41. Kf3 {[%clk 0:02:48.4]} 41...
Rf5+ {[%clk 0:01:38.8]} 42. Ke4 {[%clk 0:02:47.4]} 42... Rf1 {[%clk 0:01:34.5]}
43. Rh3 {[%clk 0:02:41.8]} 43... Re1+ {[%clk 0:01:31.4]} 44. Kd3 {[%clk
0:02:34.1]} 44... Rg1 {[%clk 0:01:27.6]} 45. h6 {[%clk 0:02:33.5]} 45... gxh6
{[%clk 0:01:24.2]} 46. gxh6 {[%clk 0:02:32.7]} 46... Ng6 {[%clk 0:01:17.1]} 47.
h7 {[%clk 0:02:30.9]} 47... Nh8 {[%clk 0:01:15.6]} 48. Ke4 {[%clk 0:02:23.7]}
48... Re1+ {[%clk 0:01:14.5]} 49. Kf5 {[%clk 0:02:22.6]} 49... Rf1+ {[%clk
0:01:13.4]} 50. Ke5 {[%clk 0:02:20.5]} 50... Re1+ {[%clk 0:01:12.5]} 51. Kd4
{[%clk 0:02:19.7]} 51... Rf1 {[%clk 0:01:09.6]} 52. Rg3 {[%clk 0:02:15.7]} 52...
Rf4+ {[%clk 0:01:07.4]} 53. Ke5 {[%clk 0:02:13.7]} 53... Rf8 {[%clk 0:01:04]}
54. Rg7 {[%clk 0:02:12.1]} 54... Kd8 {[%clk 0:00:56.5]} 55. Bd5 {[%clk
0:02:10.8]} 55... Re8+ {[%clk 0:00:54.4]} 56. Kd4 {[%clk 0:02:09.5]} 56... b6
{[%clk 0:00:53.4]} 57. Kc4 {[%clk 0:02:02.9]} 57... Rf8 {[%clk 0:00:45.4]} 58.
Kb5 {[%clk 0:02:00.8]} 58... Kc8 {[%clk 0:00:37.9]} 59. Rg8 {[%clk 0:01:55.5]}
59... Ng6 {[%clk 0:00:33.2]} 60. Rxg6 {[%clk 0:01:49.8]} 60... Rh8 {[%clk
0:00:30.3]} 61. Rg8+ {[%clk 0:01:48.7]} 61... Rxg8 {[%clk 0:00:27.8]} 62.
hxg8=Q+ {[%clk 0:01:47.5]} 1-0

[Event "Live Chess"]
[Site "Chess.com"]
[Date "2024.06.01"]
[Round "-"]
[White "MagnersCarlsberg2870"]
[Black "IanCalvert2"]
[Result "1-0"]
[WhiteElo "1895"]
[BlackElo "1610"]
[TimeControl "300"]
[EndTime "9:26:13 PDT"]
[Termination "MagnersCarlsberg2870 won on time"]

1. Nf3 {[%clk 0:04:57.3]} 1... d5 {[%clk 0:04:54.4]} 2. e4 {[%clk 0:04:56.4]}
2... dxe4 {[%clk 0:04:50.7]} 3. Ng5 {[%clk 0:04:54.3]} 3... Bf5 {[%clk
0:04:49.2]} 4. g4 {[%clk 0:04:52.8]} 4... Bg6 {[%clk 0:04:42.6]} 5. Bg2 {[%clk
0:04:52]} 5... Nf6 {[%clk 0:04:34.8]} 6. d3 {[%clk 0:04:49.2]} 6... h6 {[%clk
0:04:31.3]} 7. Nxe4 {[%clk 0:04:46.6]} 7... Nxe4 {[%clk 0:04:29.7]} 8. dxe4
{[%clk 0:04:43]} 8... Qxd1+ {[%clk 0:04:26.4]} 9. Kxd1 {[%clk 0:04:42.2]} 9...
Nc6 {[%clk 0:04:23.9]} 10. c3 {[%clk 0:04:36.7]} 10... O-O-O+ {[%clk 0:04:21]}
11. Ke2 {[%clk 0:04:32.7]} 11... e6 {[%clk 0:04:13.2]} 12. f4 {[%clk 0:04:30.7]}
12... f5 {[%clk 0:04:09.8]} 13. gxf5 {[%clk 0:04:25.6]} 13... exf5 {[%clk
0:04:07.5]} 14. e5 {[%clk 0:04:24.6]} 14... Bh5+ {[%clk 0:04:04.9]} 15. Bf3
{[%clk 0:04:23]} 15... Bxf3+ {[%clk 0:03:40.8]} 16. Kxf3 {[%clk 0:04:21.8]}
16... g5 {[%clk 0:03:32.8]} 17. h3 {[%clk 0:04:16.8]} 17... Bc5 {[%clk
0:03:25.9]} 18. Be3 {[%clk 0:04:13.6]} 18... Rd3 {[%clk 0:02:45.5]} 19. Re1
{[%clk 0:04:09.2]} 19... Nd8 {[%clk 0:02:31.2]} 20. Nd2 {[%clk 0:04:05.9]} 20...
Ne6 {[%clk 0:02:24.9]} 21. Nf1 {[%clk 0:03:56.3]} 21... Bxe3 {[%clk 0:02:14.3]}
22. Rxe3 {[%clk 0:03:52.2]} 22... Rxe3+ {[%clk 0:01:58]} 23. Nxe3 {[%clk
0:03:50.8]} 23... Nxf4 {[%clk 0:01:53]} 24. Nxf5 {[%clk 0:03:49.8]} 24... Rf8
{[%clk 0:01:49.2]} 25. Ke4 {[%clk 0:03:41]} 25... Nxh3 {[%clk 0:01:38.2]} 26. e6
{[%clk 0:03:33.1]} 26... Nf4 {[%clk 0:01:24.9]} 27. e7 {[%clk 0:03:25.2]} 27...
Re8 {[%clk 0:01:21]} 28. Rh1 {[%clk 0:03:16.5]} 28... Ng6 {[%clk 0:01:09]} 29.
Rxh6 {[%clk 0:03:13.8]} 29... Nxe7 {[%clk 0:01:06.9]} 30. Nxe7+ {[%clk
0:03:04.3]} 30... Rxe7+ {[%clk 0:01:04.3]} 31. Kf5 {[%clk 0:03:03.5]} 31... Re2
{[%clk 0:01:01.1]} 32. Kxg5 {[%clk 0:03:02.2]} 32... Rxb2 {[%clk 0:00:31.5]} 33.
Rh8+ {[%clk 0:03:01.1]} 33... Kd7 {[%clk 0:00:29.2]} 34. Rh7+ {[%clk 0:03:00.3]}
34... Kc6 {[%clk 0:00:28]} 35. Rh6+ {[%clk 0:02:59]} 35... Kc5 {[%clk
0:00:26.9]} 36. Rh7 {[%clk 0:02:58.2]} 36... Kc4 {[%clk 0:00:25.5]} 37. Rxc7+
{[%clk 0:02:57.1]} 37... Kd3 {[%clk 0:00:21.6]} 38. Kf4 {[%clk 0:02:53.9]} 38...
Rxa2 {[%clk 0:00:17.8]} 39. Rxb7 {[%clk 0:02:53]} 39... Rc2 {[%clk 0:00:15.9]}
40. Rxa7 {[%clk 0:02:51.2]} 40... Rxc3 {[%clk 0:00:14.8]} 41. Rd7+ {[%clk
0:02:50]} 41... Kc2 {[%clk 0:00:12.9]} 42. Ke4 {[%clk 0:02:48.3]} 42... Kb2
{[%clk 0:00:10]} 43. Rb7+ {[%clk 0:02:47]} 43... Kc2 {[%clk 0:00:08.9]} 44. Kd4
{[%clk 0:02:45.9]} 44... Rd3+ {[%clk 0:00:03.9]} 45. Ke4 {[%clk 0:02:42.4]}
45... Rc3 {[%clk 0:00:02.2]} 46. Ra7 {[%clk 0:02:38.9]} 1-0

[Event "Live Chess"]
[Site "Chess.com"]
[Date "2024.06.01"]
[Round "-"]
[White "ProfPoisson"]
[Black "willc-h99"]
[Result "0-1"]
[WhiteElo "1234"]
[BlackElo "2667"]
[TimeControl "300"]
[EndTime "9:26:14 PDT"]
[Termination "willc-h99 won by resignation"]

1. e4 {[%clk 0:04:56.4]} 1... d5 {[%clk 0:04:58.4]} 2. exd5 {[%clk 0:04:54.6]}
2... Qxd5 {[%clk 0:04:58.3]} 3. Nc3 {[%clk 0:04:52.4]} 3... Qd6 {[%clk
0:04:57.7]} 4. d4 {[%clk 0:04:50.7]} 4... Nf6 {[%clk 0:04:56.7]} 5. Nf3 {[%clk
0:04:49.4]} 5... a6 {[%clk 0:04:54.1]} 6. a4 {[%clk 0:04:46]} 6... Nc6 {[%clk
0:04:52.3]} 7. Bc4 {[%clk 0:04:39.9]} 7... Bg4 {[%clk 0:04:47.5]} 8. O-O {[%clk
0:04:28.6]} 8... e6 {[%clk 0:04:37.1]} 9. Be2 {[%clk 0:04:24.4]} 9... O-O-O
{[%clk 0:04:29.8]} 10. Qd3 {[%clk 0:03:57.4]} 10... Bxf3 {[%clk 0:04:20.1]} 11.
Bxf3 {[%clk 0:03:54.8]} 11... Nxd4 {[%clk 0:04:14.8]} 12. Ne4 {[%clk 0:03:21.7]}
12... Nxf3+ {[%clk 0:04:08.5]} 13. Qxf3 {[%clk 0:03:19.9]} 13... Qc6 {[%clk
0:04:07.3]} 14. Re1 {[%clk 0:03:05.3]} 14... Nxe4 {[%clk 0:04:04.5]} 15. Be3
{[%clk 0:02:39.7]} 15... Nf6 {[%clk 0:03:59]} 16. Qxc6 {[%clk 0:02:33.3]} 16...
bxc6 {[%clk 0:03:58.9]} 17. b4 {[%clk 0:02:28.7]} 17... Bxb4 {[%clk 0:03:55.3]}
18. Reb1 {[%clk 0:02:24.5]} 18... Nd5 {[%clk 0:03:48]} 19. c3 {[%clk 0:02:19]}
19... Bxc3 {[%clk 0:03:45.9]} 20. Rb3 {[%clk 0:02:12.9]} 20... Bxa1 {[%clk
0:03:44.1]} 0-1

[Event "Live Chess"]
[Site "Chess.com"]
[Date "2024.06.01"]
[Round "-"]
[White "YukHei_Lee2011"]
[Black "Brooms1989"]
[Result "1-0"]
[WhiteElo "2015"]
[BlackElo "1032"]
[TimeControl "300"]
[EndTime "9:26:15 PDT"]
[Termination "YukHei_Lee2011 won by resignation"]

1. e4 {[%clk 0:04:58.5]} 1... e5 {[%clk 0:04:59]} 2. Nf3 {[%clk 0:04:58.1]} 2...
Nc6 {[%clk 0:04:57.6]} 3. Bc4 {[%clk 0:04:57.3]} 3... Nf6 {[%clk 0:04:56.1]} 4.
d4 {[%clk 0:04:56.3]} 4... exd4 {[%clk 0:04:45.1]} 5. O-O {[%clk 0:04:55.3]}
5... Be7 {[%clk 0:04:36.9]} 6. e5 {[%clk 0:04:52.8]} 6... Ng4 {[%clk 0:04:34]}
7. Re1 {[%clk 0:04:47.6]} 7... O-O {[%clk 0:04:29.3]} 8. h3 {[%clk 0:04:47]}
8... d5 {[%clk 0:04:15]} 9. Bb5 {[%clk 0:04:39.6]} 9... Ncxe5 {[%clk 0:04:03.9]}
10. Nxe5 {[%clk 0:04:39.5]} 10... Nxe5 {[%clk 0:04:02.4]} 11. Rxe5 {[%clk
0:04:38.5]} 11... c6 {[%clk 0:03:59.8]} 12. Bd3 {[%clk 0:04:34]} 12... Bd6
{[%clk 0:03:43.6]} 13. Re1 {[%clk 0:04:26.1]} 13... f5 {[%clk 0:03:13.5]} 14. c3
{[%clk 0:04:17.8]} 14... dxc3 {[%clk 0:02:57.6]} 15. Nxc3 {[%clk 0:04:17.7]}
15... Qf6 {[%clk 0:02:45.3]} 16. Qf3 {[%clk 0:04:13.1]} 16... f4 {[%clk
0:02:37]} 17. Qh5 {[%clk 0:04:05.3]} 17... g6 {[%clk 0:02:27.6]} 18. Qf3 {[%clk
0:04:01.2]} 18... Bf5 {[%clk 0:02:16.5]} 19. Bxf5 {[%clk 0:03:42.1]} 19... Qxf5
{[%clk 0:02:16.4]} 20. Bd2 {[%clk 0:03:36.7]} 20... Rae8 {[%clk 0:02:05.9]} 21.
Ne2 {[%clk 0:03:32]} 21... g5 {[%clk 0:01:58.4]} 22. Nd4 {[%clk 0:03:30.3]}
22... Qf7 {[%clk 0:01:46.1]} 23. Qg4 {[%clk 0:03:24.4]} 1-0

[Event "Live Chess"]
[Site "Chess.com"]
[Date "2024.06.01"]
[Round "-"]
[White "TedUdale"]
[Black "Richardallis"]
[Result "0-1"]
[WhiteElo "2158"]
[BlackElo "1983"]
[TimeControl "300"]
[EndTime "9:26:18 PDT"]
[Termination "Richardallis won by resignation"]

1. e4 {[%clk 0:04:58]} 1... d5 {[%clk 0:04:58.2]} 2. exd5 {[%clk 0:04:56.7]}
2... Nf6 {[%clk 0:04:56.5]} 3. Nc3 {[%clk 0:04:55.3]} 3... Nxd5 {[%clk
0:04:55.3]} 4. Bc4 {[%clk 0:04:53.9]} 4... c6 {[%clk 0:04:54.2]} 5. Nf3 {[%clk
0:04:52.6]} 5... Bg4 {[%clk 0:04:53.3]} 6. h3 {[%clk 0:04:50]} 6... Bxf3 {[%clk
0:04:52.1]} 7. Qxf3 {[%clk 0:04:48.7]} 7... e6 {[%clk 0:04:51.7]} 8. d3 {[%clk
0:04:47]} 8... Nd7 {[%clk 0:04:50.8]} 9. O-O {[%clk 0:04:44.4]} 9... Ne5 {[%clk
0:04:48.7]} 10. Qe4 {[%clk 0:04:36.6]} 10... Bd6 {[%clk 0:04:47.2]} 11. f4
{[%clk 0:04:25.5]} 11... Nxc4 {[%clk 0:04:15.4]} 12. dxc4 {[%clk 0:04:14.8]}
12... Nxc3 {[%clk 0:04:13]} 13. bxc3 {[%clk 0:04:12.8]} 13... O-O {[%clk
0:04:11.5]} 14. Be3 {[%clk 0:04:09.4]} 14... Qe7 {[%clk 0:04:06.9]} 15. f5
{[%clk 0:04:05.7]} 15... exf5 {[%clk 0:04:04.7]} 16. Qxe7 {[%clk 0:04:02.8]}
16... Bxe7 {[%clk 0:04:04]} 17. Rxf5 {[%clk 0:04:02.4]} 17... Rfe8 {[%clk
0:04:02.7]} 18. Bd4 {[%clk 0:03:57.9]} 18... b6 {[%clk 0:04:01.6]} 19. Raf1
{[%clk 0:03:53.9]} 19... c5 {[%clk 0:03:58.6]} 20. Be5 {[%clk 0:03:24.5]} 20...
f6 {[%clk 0:03:53.6]} 21. Bg3 {[%clk 0:03:18.7]} 21... Bf8 {[%clk 0:03:51.9]}
22. Rd5 {[%clk 0:03:14.6]} 22... Re4 {[%clk 0:03:46.9]} 23. Rf4 {[%clk
0:03:09.1]} 23... Rae8 {[%clk 0:03:45.1]} 24. Rd7 {[%clk 0:02:59.4]} 24... Rxf4
{[%clk 0:03:42.8]} 25. Bxf4 {[%clk 0:02:58.3]} 25... Re4 {[%clk 0:03:42.3]} 26.
Bb8 {[%clk 0:02:44.8]} 26... Rxc4 {[%clk 0:03:37.5]} 27. Bxa7 {[%clk 0:02:40.6]}
27... Rxc3 {[%clk 0:03:35.9]} 28. Bxb6 {[%clk 0:02:35.3]} 28... Rxc2 {[%clk
0:03:34.9]} 29. a4 {[%clk 0:02:34.7]} 29... c4 {[%clk 0:03:33.8]} 30. Rd8 {[%clk
0:02:31.4]} 30... Kf7 {[%clk 0:03:32.4]} 31. a5 {[%clk 0:02:27.3]} 31... Rb2
{[%clk 0:03:30.4]} 32. Rc8 {[%clk 0:02:24.8]} 32... Rb4 {[%clk 0:03:28.8]} 33.
Kf2 {[%clk 0:02:16.7]} 33... Bd6 {[%clk 0:03:25.2]} 34. Ke3 {[%clk 0:02:12.4]}
34... Be5 {[%clk 0:03:21.6]} 35. Kd2 {[%clk 0:02:05.3]} 35... h5 {[%clk
0:03:16.5]} 36. Rc6 {[%clk 0:01:42.9]} 36... c3+ {[%clk 0:03:10.1]} 37. Kc2
{[%clk 0:01:38.1]} 37... Rb2+ {[%clk 0:03:08.2]} 38. Kd3 {[%clk 0:01:36.7]}
38... Ra2 {[%clk 0:02:58.3]} 39. Rc5 {[%clk 0:01:13.9]} 39... g5 {[%clk
0:02:49.7]} 40. g4 {[%clk 0:01:11.3]} 40... hxg4 {[%clk 0:02:46.3]} 41. hxg4
{[%clk 0:01:11.2]} 41... Rd2+ {[%clk 0:02:39.1]} 42. Ke3 {[%clk 0:01:08.8]}
42... Ra2 {[%clk 0:02:32.5]} 43. Kd3 {[%clk 0:01:07.1]} 43... Ke6 {[%clk
0:02:29.9]} 44. Rc6+ {[%clk 0:01:05.7]} 44... Kd5 {[%clk 0:02:28]} 45. Rxc3
{[%clk 0:01:03.4]} 45... Bxc3 {[%clk 0:02:24.7]} 46. Kxc3 {[%clk 0:01:03.3]}
46... Kc6 {[%clk 0:02:19.9]} 47. Bd8 {[%clk 0:01:02]} 47... Ra4 {[%clk
0:02:13.8]} 48. Bxf6 {[%clk 0:00:58]} 48... Rxg4 {[%clk 0:02:12.9]} 49. Kb3
{[%clk 0:00:55.5]} 49... Kb5 {[%clk 0:02:11.6]} 50. Bd8 {[%clk 0:00:54.1]} 50...
Rg3+ {[%clk 0:02:10.4]} 51. Kc2 {[%clk 0:00:52.9]} 51... g4 {[%clk 0:02:10.2]}
52. Kd2 {[%clk 0:00:51.8]} 52... Rf3 {[%clk 0:02:06.6]} 53. Ke2 {[%clk
0:00:50.8]} 53... Rf8 {[%clk 0:02:04.1]} 54. Bc7 {[%clk 0:00:49.9]} 54... Rf3
{[%clk 0:02:01.4]} 55. Kd2 {[%clk 0:00:42.5]} 55... Kc4 {[%clk 0:01:52.9]} 56.
Ke2 {[%clk 0:00:33.5]} 56... Kd5 {[%clk 0:01:46.6]} 57. Bb8 {[%clk 0:00:29.5]}
57... Ke4 {[%clk 0:01:42.5]} 58. a6 {[%clk 0:00:28.5]} 58... Ra3 {[%clk
0:01:40.9]} 59. a7 {[%clk 0:00:27.8]} 59... Ra2+ {[%clk 0:01:39.1]} 60. Kf1
{[%clk 0:00:26.7]} 60... Kf3 {[%clk 0:01:38.2]} 61. Kg1 {[%clk 0:00:26.2]} 61...
g3 {[%clk 0:01:34.2]} 62. Be5 {[%clk 0:00:20]} 62... Rxa7 {[%clk 0:01:30.2]} 63.
Kf1 {[%clk 0:00:18.5]} 63... Rb7 {[%clk 0:01:28.1]} 64. Ke1 {[%clk 0:00:17.2]}
64... Re7 {[%clk 0:01:26.8]} 0-1